[Event "*** SCC Grand Prix: Titled Tuesday Blitz"]
[Site "Chess.com"]
[Date "2020.06.02"]
[Round "9"]
[White "LamaChampetre"]
[Black "Enriquack"]
[Result "1-0"]
[WhiteElo "2215"]
[BlackElo "2334"]
[TimeControl "180+1"]
[EndTime "11:46:13 PDT"]
[Termination "LamaChampetre won by resignation"]

1. d4 {[%clk 0:03:00.9]} 1... Nf6 {[%clk 0:02:59.9]} 2. c4 {[%clk 0:02:45.6]}
2... g6 {[%clk 0:02:59.8]} 3. Nc3 {[%clk 0:02:45.1]} 3... d5 {[%clk 0:03:00.2]}
4. cxd5 {[%clk 0:02:46]} 4... Nxd5 {[%clk 0:03:01.1]} 5. e4 {[%clk 0:02:46.4]}
5... Nxc3 {[%clk 0:03:01.4]} 6. bxc3 {[%clk 0:02:47.3]} 6... Bg7 {[%clk
0:03:02.2]} 7. Be3 {[%clk 0:02:47.4]} 7... c5 {[%clk 0:02:58.3]} 8. Nf3 {[%clk
0:02:46.8]} 8... O-O {[%clk 0:02:56.9]} 9. Be2 {[%clk 0:02:46.2]} 9... Qa5
{[%clk 0:02:44.8]} 10. O-O {[%clk 0:02:44.3]} 10... Bg4 {[%clk 0:02:24.4]} 11.
Rb1 {[%clk 0:02:37.1]} 11... Qxc3 {[%clk 0:02:18.4]} 12. dxc5 {[%clk 0:02:17.1]}
12... Nc6 {[%clk 0:02:01.7]} 13. Rxb7 {[%clk 0:02:02.2]} 13... Rfd8 {[%clk
0:01:28.6]} 14. Qa4 {[%clk 0:01:57.5]} 14... Rac8 {[%clk 0:01:17.7]} 15. Rc1
{[%clk 0:01:42.6]} 15... Qf6 {[%clk 0:01:07.9]} 16. Bg5 {[%clk 0:01:26.2]} 16...
Qe6 {[%clk 0:01:05.5]} 17. Bc4 {[%clk 0:01:17.8]} 17... Bxf3 {[%clk 0:00:53.6]}
18. Bxe6 {[%clk 0:01:13.3]} 18... fxe6 {[%clk 0:00:52.9]} 19. gxf3 {[%clk
0:01:09.6]} 19... Ne5 {[%clk 0:00:50.5]} 20. Qb3 {[%clk 0:00:58.5]} 20... Rc6
{[%clk 0:00:46.4]} 21. Rxe7 {[%clk 0:00:43.2]} 21... h6 {[%clk 0:00:40.6]} 22.
Rxe6 {[%clk 0:00:34.5]} 22... Rcc8 {[%clk 0:00:32.8]} 23. Re8+ {[%clk
0:00:23.6]} 23... Kh7 {[%clk 0:00:31.8]} 24. Rxd8 {[%clk 0:00:22.6]} 1-0

[Event "*** SCC Grand Prix: Titled Tuesday Blitz"]
[Site "Chess.com"]
[Date "2020.06.02"]
[Round "9"]
[White "Dmitry_M1"]
[Black "Malysch"]
[Result "0-1"]
[WhiteElo "2386"]
[BlackElo "2513"]
[TimeControl "180+1"]
[EndTime "11:46:16 PDT"]
[Termination "Malysch won on time"]

1. d4 {[%clk 0:02:53.8]} 1... Nf6 {[%clk 0:02:58.7]} 2. c4 {[%clk 0:02:54.3]}
2... c5 {[%clk 0:02:59.6]} 3. d5 {[%clk 0:02:52]} 3... b5 {[%clk 0:02:59.6]} 4.
cxb5 {[%clk 0:02:52.2]} 4... a6 {[%clk 0:02:59.9]} 5. b6 {[%clk 0:02:52.8]} 5...
g6 {[%clk 0:02:59.3]} 6. Nc3 {[%clk 0:02:53.3]} 6... d6 {[%clk 0:02:54.9]} 7. a4
{[%clk 0:02:53.6]} 7... Qxb6 {[%clk 0:02:54.1]} 8. a5 {[%clk 0:02:53.9]} 8...
Qb4 {[%clk 0:02:53.6]} 9. Ra4 {[%clk 0:02:53.9]} 9... Qb7 {[%clk 0:02:51.5]} 10.
e4 {[%clk 0:02:53.9]} 10... Bg7 {[%clk 0:02:49.4]} 11. Nf3 {[%clk 0:02:50.4]}
11... O-O {[%clk 0:02:48.9]} 12. Be2 {[%clk 0:02:42.5]} 12... Bd7 {[%clk
0:02:48.8]} 13. Ra3 {[%clk 0:02:41.8]} 13... Bb5 {[%clk 0:02:49]} 14. O-O {[%clk
0:02:37.5]} 14... Nbd7 {[%clk 0:02:42.3]} 15. Nd2 {[%clk 0:02:35]} 15... Rab8
{[%clk 0:02:32.3]} 16. h3 {[%clk 0:01:49.5]} 16... Ne8 {[%clk 0:02:29.7]} 17.
Nc4 {[%clk 0:01:25.6]} 17... Bxc4 {[%clk 0:02:26.4]} 18. Bxc4 {[%clk 0:01:25.7]}
18... Nc7 {[%clk 0:02:23.5]} 19. Kh1 {[%clk 0:01:07.4]} 19... Nb5 {[%clk
0:02:17.4]} 20. Rb3 {[%clk 0:01:03.5]} 20... Nxc3 {[%clk 0:02:04.7]} 21. bxc3
{[%clk 0:01:01.2]} 21... Qc7 {[%clk 0:02:01.9]} 22. Bxa6 {[%clk 0:00:41.4]}
22... Qxa5 {[%clk 0:01:58.8]} 23. Ra3 {[%clk 0:00:29.3]} 23... Qc7 {[%clk
0:01:50]} 24. Be2 {[%clk 0:00:28.2]} 24... c4 {[%clk 0:01:42]} 25. Be3 {[%clk
0:00:23.4]} 25... Nc5 {[%clk 0:01:38.9]} 26. f3 {[%clk 0:00:20.8]} 26... Rb3
{[%clk 0:01:34.5]} 27. Rxb3 {[%clk 0:00:12.2]} 27... cxb3 {[%clk 0:01:35.4]} 28.
Bd4 {[%clk 0:00:09.9]} 28... Rb8 {[%clk 0:01:32.5]} 29. Qd2 {[%clk 0:00:05.4]}
29... b2 {[%clk 0:01:26.7]} 30. Rb1 {[%clk 0:00:05.2]} 30... Na4 {[%clk
0:01:22.3]} 31. Bd1 {[%clk 0:00:03.2]} 31... Nxc3 {[%clk 0:01:17.3]} 0-1

[Event "*** SCC Grand Prix: Titled Tuesday Blitz"]
[Site "Chess.com"]
[Date "2020.06.02"]
[Round "9"]
[White "Happy1712Drummer"]
[Black "Misticpikachu"]
[Result "1-0"]
[WhiteElo "2454"]
[BlackElo "2271"]
[TimeControl "180+1"]
[EndTime "11:46:17 PDT"]
[Termination "Happy1712Drummer won on time"]

1. d4 {[%clk 0:03:00.9]} 1... d5 {[%clk 0:02:59.9]} 2. Nf3 {[%clk 0:02:49]} 2...
e6 {[%clk 0:03:00]} 3. g3 {[%clk 0:02:39.5]} 3... Nf6 {[%clk 0:03:00.5]} 4. Bg2
{[%clk 0:02:31.5]} 4... Be7 {[%clk 0:03:00.3]} 5. O-O {[%clk 0:02:29.8]} 5...
O-O {[%clk 0:02:59.7]} 6. c4 {[%clk 0:02:28.1]} 6... dxc4 {[%clk 0:02:51.1]} 7.
Ne5 {[%clk 0:02:19]} 7... Nc6 {[%clk 0:02:49]} 8. Bxc6 {[%clk 0:02:13.9]} 8...
bxc6 {[%clk 0:02:48.2]} 9. Nc3 {[%clk 0:02:00.3]} 9... c5 {[%clk 0:02:39.4]} 10.
dxc5 {[%clk 0:01:57.2]} 10... Bxc5 {[%clk 0:02:36.6]} 11. Nxc4 {[%clk
0:01:53.6]} 11... Bb7 {[%clk 0:02:22.9]} 12. Be3 {[%clk 0:01:42.9]} 12... Bb6
{[%clk 0:01:58]} 13. Qxd8 {[%clk 0:01:38.6]} 13... Rfxd8 {[%clk 0:01:57.2]} 14.
Rfd1 {[%clk 0:01:39.5]} 14... Kf8 {[%clk 0:01:48.1]} 15. f3 {[%clk 0:01:25.1]}
15... Ke7 {[%clk 0:01:26.9]} 16. Nxb6 {[%clk 0:01:15.6]} 16... axb6 {[%clk
0:01:25.8]} 17. Bf4 {[%clk 0:01:15.7]} 17... Rxd1+ {[%clk 0:01:04.5]} 18. Rxd1
{[%clk 0:01:12]} 18... Rc8 {[%clk 0:01:03.9]} 19. e4 {[%clk 0:01:10.2]} 19...
Nd7 {[%clk 0:00:50.5]} 20. Nb5 {[%clk 0:00:52.7]} 20... e5 {[%clk 0:00:43.5]}
21. Bg5+ {[%clk 0:00:51.5]} 21... f6 {[%clk 0:00:43.3]} 22. Be3 {[%clk
0:00:51.3]} 22... Ba6 {[%clk 0:00:16.1]} 23. Na7 {[%clk 0:00:47]} 1-0

[Event "*** SCC Grand Prix: Titled Tuesday Blitz"]
[Site "Chess.com"]
[Date "2020.06.02"]
[Round "9"]
[White "marszach123"]
[Black "pfalcon1949"]
[Result "1-0"]
[WhiteElo "2131"]
[BlackElo "2002"]
[TimeControl "180+1"]
[EndTime "11:46:18 PDT"]
[Termination "marszach123 won by resignation"]

1. e4 {[%clk 0:03:00.9]} 1... e6 {[%clk 0:02:06.6]} 2. d4 {[%clk 0:03:00.1]}
2... d5 {[%clk 0:02:06.5]} 3. Nc3 {[%clk 0:02:59.9]} 3... Bb4 {[%clk 0:02:05.3]}
4. e5 {[%clk 0:02:59.7]} 4... c5 {[%clk 0:02:05.4]} 5. a3 {[%clk 0:02:59.5]}
5... Bxc3+ {[%clk 0:02:05.5]} 6. bxc3 {[%clk 0:03:00.2]} 6... Qa5 {[%clk
0:02:06]} 7. Bd2 {[%clk 0:02:59.2]} 7... Qa4 {[%clk 0:02:04.6]} 8. Qg4 {[%clk
0:02:47.1]} 8... Kf8 {[%clk 0:02:03.2]} 9. Nf3 {[%clk 0:02:22.6]} 9... b6 {[%clk
0:01:58.2]} 10. Be2 {[%clk 0:02:15.8]} 10... Ne7 {[%clk 0:01:57]} 11. O-O {[%clk
0:02:15.4]} 11... Qxc2 {[%clk 0:01:53.5]} 12. Qf4 {[%clk 0:01:50]} 12... Qf5
{[%clk 0:01:50.5]} 13. Qe3 {[%clk 0:01:47.3]} 13... Qe4 {[%clk 0:01:49.3]} 14.
a4 {[%clk 0:01:27.3]} 14... Bb7 {[%clk 0:01:45.6]} 15. a5 {[%clk 0:01:24.9]}
15... Nd7 {[%clk 0:01:44.8]} 16. Bb5 {[%clk 0:01:20.4]} 16... Qxe3 {[%clk
0:01:41.6]} 17. fxe3 {[%clk 0:01:19.1]} 17... Ke8 {[%clk 0:01:33.4]} 18. Ng5
{[%clk 0:01:16.5]} 18... a6 {[%clk 0:01:02.3]} 19. Nxf7 {[%clk 0:00:57.6]} 19...
Rf8 {[%clk 0:00:45]} 20. Nd6+ {[%clk 0:00:56.9]} 20... Kd8 {[%clk 0:00:39.5]}
21. Nxb7+ {[%clk 0:00:53.8]} 21... Kc7 {[%clk 0:00:38.4]} 22. Bxd7 {[%clk
0:00:45]} 22... Kxd7 {[%clk 0:00:31.2]} 23. axb6 {[%clk 0:00:42.5]} 23... Rxf1+
{[%clk 0:00:21.5]} 24. Kxf1 {[%clk 0:00:41.8]} 24... c4 {[%clk 0:00:20.1]} 25.
Nc5+ {[%clk 0:00:40.1]} 25... Kc6 {[%clk 0:00:17.9]} 26. b7 {[%clk 0:00:39.3]}
26... Kb6 {[%clk 0:00:18.8]} 27. bxa8=Q {[%clk 0:00:37.8]} 1-0

[Event "*** SCC Grand Prix: Titled Tuesday Blitz"]
[Site "Chess.com"]
[Date "2020.06.02"]
[Round "9"]
[White "Oleksandr_Bortnyk"]
[Black "VincentKeymer"]
[Result "0-1"]
[WhiteElo "2948"]
[BlackElo "2809"]
[TimeControl "180+1"]
[EndTime "11:46:19 PDT"]
[Termination "VincentKeymer won by resignation"]

1. d4 {[%clk 0:03:00.9]} 1... Nf6 {[%clk 0:02:59.6]} 2. Nc3 {[%clk 0:03:01.1]}
2... d5 {[%clk 0:02:59.3]} 3. Bf4 {[%clk 0:03:01.6]} 3... a6 {[%clk 0:02:59.5]}
4. e3 {[%clk 0:03:01.2]} 4... c5 {[%clk 0:02:57.9]} 5. Nf3 {[%clk 0:03:01.6]}
5... Nc6 {[%clk 0:02:57.6]} 6. a3 {[%clk 0:02:58.1]} 6... cxd4 {[%clk
0:02:52.9]} 7. exd4 {[%clk 0:02:58.3]} 7... Bg4 {[%clk 0:02:50.3]} 8. Be2 {[%clk
0:02:58.5]} 8... e6 {[%clk 0:02:50.1]} 9. h3 {[%clk 0:02:54.6]} 9... Bh5 {[%clk
0:02:48.6]} 10. g4 {[%clk 0:02:28.8]} 10... Bg6 {[%clk 0:02:47.7]} 11. Ne5
{[%clk 0:02:29.7]} 11... Nxe5 {[%clk 0:02:38.7]} 12. Bxe5 {[%clk 0:02:24.8]}
12... Bd6 {[%clk 0:02:36.1]} 13. Qd2 {[%clk 0:02:16.9]} 13... Rc8 {[%clk
0:02:30.4]} 14. O-O {[%clk 0:01:57.9]} 14... h5 {[%clk 0:02:11]} 15. g5 {[%clk
0:01:41.6]} 15... Bxe5 {[%clk 0:02:10.6]} 16. dxe5 {[%clk 0:01:42.3]} 16... Nd7
{[%clk 0:02:10.6]} 17. Qe3 {[%clk 0:01:26.4]} 17... d4 {[%clk 0:02:08.6]} 18.
Qxd4 {[%clk 0:01:18.4]} 18... Qxg5+ {[%clk 0:02:08.9]} 19. Kh2 {[%clk
0:01:03.6]} 19... Qxe5+ {[%clk 0:01:58.2]} 20. Qxe5 {[%clk 0:01:03.5]} 20...
Nxe5 {[%clk 0:01:59.1]} 21. f4 {[%clk 0:01:04.4]} 21... Nc6 {[%clk 0:01:58.9]}
22. Rad1 {[%clk 0:00:41.8]} 22... Bxc2 {[%clk 0:01:53.2]} 23. Rd2 {[%clk
0:00:40.9]} 23... Bf5 {[%clk 0:01:52.1]} 24. Rfd1 {[%clk 0:00:39.6]} 24... Rd8
{[%clk 0:01:37.1]} 25. Rxd8+ {[%clk 0:00:38.9]} 25... Nxd8 {[%clk 0:01:38]} 26.
Na4 {[%clk 0:00:39.6]} 26... Bc2 {[%clk 0:01:33.6]} 27. Rd4 {[%clk 0:00:37.8]}
27... Nc6 {[%clk 0:01:30.7]} 28. Rc4 {[%clk 0:00:34.5]} 28... Bb3 {[%clk
0:01:30.1]} 29. Rxc6 {[%clk 0:00:32.4]} 29... bxc6 {[%clk 0:01:29.4]} 30. Nc5
{[%clk 0:00:33.3]} 30... Bd5 {[%clk 0:01:28.8]} 31. Bxa6 {[%clk 0:00:33.5]}
31... Ke7 {[%clk 0:01:29]} 32. a4 {[%clk 0:00:31.9]} 32... Rb8 {[%clk 0:01:27]}
33. Bb7 {[%clk 0:00:32]} 33... Kd6 {[%clk 0:01:24.9]} 34. b4 {[%clk 0:00:31.8]}
34... Kc7 {[%clk 0:01:24.9]} 35. Kg3 {[%clk 0:00:25.1]} 35... Rxb7 {[%clk
0:01:23.8]} 36. Nxb7 {[%clk 0:00:26]} 36... Kxb7 {[%clk 0:01:24.4]} 37. Kh4
{[%clk 0:00:26.6]} 37... f6 {[%clk 0:01:20.4]} 38. Kxh5 {[%clk 0:00:26.4]} 38...
e5 {[%clk 0:01:21]} 39. fxe5 {[%clk 0:00:24.3]} 39... fxe5 {[%clk 0:01:21.9]}
40. Kg5 {[%clk 0:00:24.6]} 40... Bb3 {[%clk 0:01:19.6]} 41. a5 {[%clk
0:00:23.7]} 41... e4 {[%clk 0:01:18.5]} 42. Kf4 {[%clk 0:00:23.8]} 42... Bd5
{[%clk 0:01:18]} 43. h4 {[%clk 0:00:23.7]} 43... Ka6 {[%clk 0:01:18]} 44. h5
{[%clk 0:00:23.8]} 44... Kb5 {[%clk 0:01:18]} 45. Ke3 {[%clk 0:00:24.3]} 45...
Kxb4 {[%clk 0:01:17.5]} 46. a6 {[%clk 0:00:25.2]} 46... c5 {[%clk 0:01:17.9]}
47. a7 {[%clk 0:00:26.1]} 47... Ba8 {[%clk 0:01:17.7]} 48. Kf4 {[%clk
0:00:26.5]} 48... Kb5 {[%clk 0:01:17.9]} 49. Ke5 {[%clk 0:00:26.8]} 49... e3
{[%clk 0:01:17.3]} 50. h6 {[%clk 0:00:27.6]} 50... gxh6 {[%clk 0:01:16.7]} 51.
Kd6 {[%clk 0:00:28]} 51... e2 {[%clk 0:01:16.8]} 0-1

[Event "*** SCC Grand Prix: Titled Tuesday Blitz"]
[Site "Chess.com"]
[Date "2020.06.02"]
[Round "9"]
[White "ErikRonka"]
[Black "serhanberat_ozdemir"]
[Result "1-0"]
[WhiteElo "2408"]
[BlackElo "2500"]
[TimeControl "180+1"]
[EndTime "11:46:19 PDT"]
[Termination "ErikRonka won by checkmate"]

1. d4 {[%clk 0:03:00.9]} 1... Nf6 {[%clk 0:02:59.6]} 2. Nc3 {[%clk 0:03:00.7]}
2... d5 {[%clk 0:02:58.5]} 3. e4 {[%clk 0:03:00.7]} 3... dxe4 {[%clk 0:02:55.5]}
4. f3 {[%clk 0:03:00.8]} 4... exf3 {[%clk 0:02:56.4]} 5. Nxf3 {[%clk 0:03:01]}
5... e6 {[%clk 0:02:41.4]} 6. Bg5 {[%clk 0:03:00.3]} 6... Be7 {[%clk 0:02:41.7]}
7. Qd2 {[%clk 0:02:57.8]} 7... b6 {[%clk 0:02:40.1]} 8. O-O-O {[%clk 0:02:53.9]}
8... Bb7 {[%clk 0:02:40]} 9. Bd3 {[%clk 0:02:46.2]} 9... h6 {[%clk 0:02:38.7]}
10. Bh4 {[%clk 0:02:45.8]} 10... Nc6 {[%clk 0:02:35.2]} 11. Kb1 {[%clk
0:02:31.1]} 11... Nb4 {[%clk 0:02:34.3]} 12. Bb5+ {[%clk 0:01:55.2]} 12... c6
{[%clk 0:02:31.1]} 13. Be2 {[%clk 0:01:52.8]} 13... Nbd5 {[%clk 0:02:31.4]} 14.
Rhg1 {[%clk 0:01:48.1]} 14... Nxc3+ {[%clk 0:02:29.9]} 15. bxc3 {[%clk
0:01:44.8]} 15... Ne4 {[%clk 0:02:28.3]} 16. Qd3 {[%clk 0:01:41.6]} 16... Bxh4
{[%clk 0:02:24.9]} 17. Qxe4 {[%clk 0:01:40.1]} 17... Be7 {[%clk 0:02:22.3]} 18.
g4 {[%clk 0:01:37.3]} 18... Qd5 {[%clk 0:02:18.7]} 19. Qe3 {[%clk 0:01:36.7]}
19... Qa5 {[%clk 0:01:50.6]} 20. Ne5 {[%clk 0:01:35.4]} 20... O-O {[%clk
0:01:36.8]} 21. h4 {[%clk 0:01:28.5]} 21... c5 {[%clk 0:01:33.1]} 22. g5 {[%clk
0:01:27.9]} 22... cxd4 {[%clk 0:01:32.7]} 23. Rxd4 {[%clk 0:01:24.2]} 23... hxg5
{[%clk 0:01:26.1]} 24. hxg5 {[%clk 0:01:22.8]} 24... Rac8 {[%clk 0:01:19.4]} 25.
Nd7 {[%clk 0:01:11.6]} 25... Rxc3 {[%clk 0:01:01.4]} 26. Nf6+ {[%clk 0:01:10.9]}
26... Bxf6 {[%clk 0:00:59.9]} 27. gxf6 {[%clk 0:01:11]} 27... Rfc8 {[%clk
0:00:15.1]} 28. Rxg7+ {[%clk 0:01:06]} 28... Kf8 {[%clk 0:00:12]} 29. Qh6 {[%clk
0:00:55.7]} 29... Rh3 {[%clk 0:00:04.2]} 30. Rg8+ {[%clk 0:00:53.3]} 30... Kxg8
{[%clk 0:00:05]} 31. Qg7# {[%clk 0:00:53.5]} 1-0

[Event "*** SCC Grand Prix: Titled Tuesday Blitz"]
[Site "Chess.com"]
[Date "2020.06.02"]
[Round "9"]
[White "Ginger_GM"]
[Black "LiemLe"]
[Result "0-1"]
[WhiteElo "2594"]
[BlackElo "2887"]
[TimeControl "180+1"]
[EndTime "11:46:20 PDT"]
[Termination "LiemLe won by resignation"]

1. f4 {[%clk 0:02:58.8]} 1... d5 {[%clk 0:02:57.8]} 2. e3 {[%clk 0:02:57]} 2...
g6 {[%clk 0:02:57.9]} 3. Nf3 {[%clk 0:02:55.2]} 3... Bg7 {[%clk 0:02:58.3]} 4.
Be2 {[%clk 0:02:54.8]} 4... Nd7 {[%clk 0:02:48.1]} 5. Nc3 {[%clk 0:02:48.1]}
5... Ngf6 {[%clk 0:02:41.5]} 6. O-O {[%clk 0:02:46.1]} 6... O-O {[%clk 0:02:42]}
7. d3 {[%clk 0:02:46.2]} 7... c6 {[%clk 0:02:36.1]} 8. Kh1 {[%clk 0:02:39.3]}
8... Qc7 {[%clk 0:02:33.3]} 9. e4 {[%clk 0:02:38.4]} 9... dxe4 {[%clk
0:02:32.6]} 10. dxe4 {[%clk 0:02:37.9]} 10... e5 {[%clk 0:02:31.9]} 11. f5
{[%clk 0:02:38]} 11... Nc5 {[%clk 0:02:31]} 12. Nd2 {[%clk 0:01:23]} 12... b5
{[%clk 0:02:21.2]} 13. a3 {[%clk 0:01:21.5]} 13... a5 {[%clk 0:02:15.9]} 14. Qe1
{[%clk 0:01:21.5]} 14... Rb8 {[%clk 0:02:10.1]} 15. Qh4 {[%clk 0:01:16.1]} 15...
b4 {[%clk 0:02:03.9]} 16. axb4 {[%clk 0:01:17]} 16... axb4 {[%clk 0:02:03.8]}
17. Nd1 {[%clk 0:01:17]} 17... Qd8 {[%clk 0:01:34]} 18. Bf3 {[%clk 0:00:30.6]}
18... gxf5 {[%clk 0:01:25.8]} 19. exf5 {[%clk 0:00:30.7]} 19... Bxf5 {[%clk
0:01:26.7]} 20. Bxc6 {[%clk 0:00:29.9]} 20... Bg6 {[%clk 0:01:21.2]} 21. Ne3
{[%clk 0:00:29.8]} 21... Rc8 {[%clk 0:01:18.7]} 22. Bb5 {[%clk 0:00:27.7]} 22...
Nfe4 {[%clk 0:01:16.2]} 23. Qe1 {[%clk 0:00:26.2]} 23... f5 {[%clk 0:01:12]} 24.
Bc4+ {[%clk 0:00:25.4]} 24... Kh8 {[%clk 0:01:11.4]} 25. Nb3 {[%clk 0:00:25.6]}
25... f4 {[%clk 0:01:10.5]} 26. Nd5 {[%clk 0:00:24.9]} 26... Nd6 {[%clk
0:01:08.4]} 27. Nxc5 {[%clk 0:00:21.2]} 27... Nxc4 {[%clk 0:01:07.8]} 28. Ne6
{[%clk 0:00:09.9]} 28... Qxd5 {[%clk 0:01:07.8]} 29. Nxf8 {[%clk 0:00:10.3]}
29... Rxf8 {[%clk 0:01:08.5]} 30. b3 {[%clk 0:00:09.9]} 30... Nd6 {[%clk
0:01:05.1]} 31. Qxb4 {[%clk 0:00:09.8]} 31... Bxc2 {[%clk 0:00:59.5]} 32. Ra7
{[%clk 0:00:09.5]} 32... Be4 {[%clk 0:00:57.2]} 33. Rg1 {[%clk 0:00:08.6]} 33...
f3 {[%clk 0:00:56.3]} 34. Ra5 {[%clk 0:00:05.8]} 34... fxg2+ {[%clk 0:00:55.9]}
0-1

[Event "*** SCC Grand Prix: Titled Tuesday Blitz"]
[Site "Chess.com"]
[Date "2020.06.02"]
[Round "9"]
[White "thedjoker98"]
[Black "nitpicker"]
[Result "1-0"]
[WhiteElo "2450"]
[BlackElo "2238"]
[TimeControl "180+1"]
[EndTime "11:46:20 PDT"]
[Termination "thedjoker98 won on time"]

1. d4 {[%clk 0:03:00.9]} 1... Nf6 {[%clk 0:02:59.3]} 2. c4 {[%clk 0:03:01.4]}
2... e6 {[%clk 0:02:59.1]} 3. Nc3 {[%clk 0:03:01.9]} 3... Bb4 {[%clk 0:02:58.9]}
4. g3 {[%clk 0:03:01.6]} 4... c5 {[%clk 0:02:50.9]} 5. Nf3 {[%clk 0:03:00.2]}
5... cxd4 {[%clk 0:02:47.9]} 6. Nxd4 {[%clk 0:03:01.1]} 6... a6 {[%clk
0:02:47.1]} 7. Bg2 {[%clk 0:03:00.6]} 7... Qc7 {[%clk 0:02:43.9]} 8. O-O {[%clk
0:02:59.9]} 8... Qxc4 {[%clk 0:02:33.5]} 9. Bg5 {[%clk 0:03:00.2]} 9... Bxc3
{[%clk 0:02:05.8]} 10. Rc1 {[%clk 0:03:00.4]} 10... Nc6 {[%clk 0:02:03.8]} 11.
Nxc6 {[%clk 0:02:45.2]} 11... bxc6 {[%clk 0:01:57.2]} 12. Rxc3 {[%clk
0:02:42.5]} 12... Qb4 {[%clk 0:01:51.6]} 13. Be3 {[%clk 0:02:31.7]} 13... Nd5
{[%clk 0:01:27.4]} 14. Bxd5 {[%clk 0:02:30.8]} 14... cxd5 {[%clk 0:01:24.5]} 15.
Bc5 {[%clk 0:02:29.7]} 15... Qxb2 {[%clk 0:01:20.5]} 16. Qd4 {[%clk 0:02:24.7]}
16... f6 {[%clk 0:01:14.5]} 17. Bf8 {[%clk 0:02:07.5]} 17... Kf7 {[%clk
0:01:05.3]} 18. Ba3 {[%clk 0:02:00.4]} 18... Qb5 {[%clk 0:00:53.9]} 19. Rfc1
{[%clk 0:01:57.3]} 19... Bb7 {[%clk 0:00:50.9]} 20. Rb3 {[%clk 0:01:55.3]} 20...
Qxe2 {[%clk 0:00:34.4]} 21. Rxb7 {[%clk 0:01:53.2]} 21... Rhd8 {[%clk
0:00:31.6]} 22. Rcc7 {[%clk 0:01:50.9]} 22... Ke8 {[%clk 0:00:30.7]} 23. Qb4
{[%clk 0:01:38.1]} 23... Kf7 {[%clk 0:00:14.3]} 24. Rxd7+ {[%clk 0:01:35.9]}
24... Rxd7 {[%clk 0:00:13.7]} 25. Rxd7+ {[%clk 0:01:36.8]} 25... Kg6 {[%clk
0:00:14.1]} 26. Qb1+ {[%clk 0:01:20.8]} 26... Qe4 {[%clk 0:00:07.5]} 27. Qxe4+
{[%clk 0:01:13.1]} 27... dxe4 {[%clk 0:00:07.4]} 28. Re7 {[%clk 0:01:14]} 28...
e5 {[%clk 0:00:06.6]} 29. Kg2 {[%clk 0:01:04.7]} 29... f5 {[%clk 0:00:04.9]} 30.
Rxe5 {[%clk 0:01:04]} 30... Rc8 {[%clk 0:00:04.4]} 31. Rc5 {[%clk 0:01:03.2]}
31... Rd8 {[%clk 0:00:03.7]} 32. Ra5 {[%clk 0:01:02.2]} 32... Rd2 {[%clk
0:00:02.8]} 33. Bc1 {[%clk 0:01:02.4]} 33... Rc2 {[%clk 0:00:01.9]} 34. Rxa6+
{[%clk 0:01:02.1]} 1-0

[Event "*** SCC Grand Prix: Titled Tuesday Blitz"]
[Site "Chess.com"]
[Date "2020.06.02"]
[Round "9"]
[White "DonPreuss"]
[Black "MateSchmate"]
[Result "0-1"]
[WhiteElo "2233"]
[BlackElo "2379"]
[TimeControl "180+1"]
[EndTime "11:46:22 PDT"]
[Termination "MateSchmate won on time"]

1. d4 {[%clk 0:03:00.9]} 1... c5 {[%clk 0:02:59.6]} 2. e4 {[%clk 0:02:59.8]}
2... cxd4 {[%clk 0:03:00.5]} 3. Qxd4 {[%clk 0:03:00.2]} 3... Nc6 {[%clk
0:03:00]} 4. Qd1 {[%clk 0:03:01.1]} 4... Nf6 {[%clk 0:03:00.1]} 5. Nc3 {[%clk
0:03:01.6]} 5... e5 {[%clk 0:02:58.5]} 6. Bc4 {[%clk 0:02:57.5]} 6... Bc5 {[%clk
0:02:58.5]} 7. Bg5 {[%clk 0:02:44]} 7... Qb6 {[%clk 0:02:54.1]} 8. Qd2 {[%clk
0:02:37.9]} 8... Bd4 {[%clk 0:02:45.6]} 9. Bxf6 {[%clk 0:02:29]} 9... gxf6
{[%clk 0:02:41.9]} 10. Nd5 {[%clk 0:02:29.5]} 10... Qxb2 {[%clk 0:02:34.2]} 11.
Nxf6+ {[%clk 0:02:29.6]} 11... Kd8 {[%clk 0:02:32.4]} 12. Qg5 {[%clk 0:01:52.7]}
12... Qxa1+ {[%clk 0:02:20.7]} 13. Ke2 {[%clk 0:01:50.8]} 13... Kc7 {[%clk
0:02:13.5]} 14. Nd5+ {[%clk 0:01:49.3]} 14... Kb8 {[%clk 0:02:14]} 15. Qf6
{[%clk 0:01:13.8]} 15... Bc5 {[%clk 0:02:05.7]} 16. Qxh8 {[%clk 0:01:10.2]}
16... Nd4+ {[%clk 0:02:02.7]} 17. Kd2 {[%clk 0:00:51.3]} 17... Nc6 {[%clk
0:01:17.5]} 18. Nf3 {[%clk 0:00:22.3]} 18... Qxh1 {[%clk 0:01:12.1]} 19. Nxe5
{[%clk 0:00:22.2]} 19... a6 {[%clk 0:00:58.2]} 20. Nxd7+ {[%clk 0:00:20.2]}
20... Ka7 {[%clk 0:00:57.7]} 21. Nxc5 {[%clk 0:00:14.7]} 21... Qxg2 {[%clk
0:00:52.3]} 22. Qf6 {[%clk 0:00:13]} 22... Qxh2 {[%clk 0:00:48.5]} 23. Bxa6
{[%clk 0:00:11.8]} 23... Rb8 {[%clk 0:00:39.6]} 24. Bb5 {[%clk 0:00:05.7]} 24...
Qe5 {[%clk 0:00:35.7]} 0-1

[Event "*** SCC Grand Prix: Titled Tuesday Blitz"]
[Site "Chess.com"]
[Date "2020.06.02"]
[Round "9"]
[White "attack2mateU"]
[Black "Zq1"]
[Result "0-1"]
[WhiteElo "2698"]
[BlackElo "2554"]
[TimeControl "180+1"]
[EndTime "11:46:26 PDT"]
[Termination "Zq1 won by resignation"]

1. e4 {[%clk 0:03:00.9]} 1... c5 {[%clk 0:02:59]} 2. Nf3 {[%clk 0:03:00.2]} 2...
d6 {[%clk 0:02:59.1]} 3. d4 {[%clk 0:02:59.9]} 3... cxd4 {[%clk 0:02:59.3]} 4.
Nxd4 {[%clk 0:03:00.6]} 4... Nf6 {[%clk 0:02:59.3]} 5. Nc3 {[%clk 0:03:01.1]}
5... Nc6 {[%clk 0:02:59.6]} 6. Bg5 {[%clk 0:02:54.3]} 6... e6 {[%clk 0:02:59.2]}
7. Qd2 {[%clk 0:02:54.6]} 7... Be7 {[%clk 0:02:59.2]} 8. O-O-O {[%clk
0:02:55.1]} 8... O-O {[%clk 0:02:59.1]} 9. h4 {[%clk 0:02:53.9]} 9... h6 {[%clk
0:02:51.4]} 10. Nxc6 {[%clk 0:02:18.5]} 10... bxc6 {[%clk 0:02:50.5]} 11. Be2
{[%clk 0:02:02.9]} 11... Rb8 {[%clk 0:02:43.2]} 12. Be3 {[%clk 0:01:15.3]} 12...
Qa5 {[%clk 0:02:35.4]} 13. Qd4 {[%clk 0:00:50]} 13... c5 {[%clk 0:02:09.7]} 14.
Qd3 {[%clk 0:00:50.5]} 14... Bb7 {[%clk 0:02:00.3]} 15. f3 {[%clk 0:00:45]}
15... Bc6 {[%clk 0:01:56]} 16. g4 {[%clk 0:00:43]} 16... Qb4 {[%clk 0:01:48.8]}
17. b3 {[%clk 0:00:41.5]} 17... d5 {[%clk 0:01:47.9]} 18. exd5 {[%clk
0:00:35.5]} 18... exd5 {[%clk 0:01:40.7]} 19. g5 {[%clk 0:00:35.4]} 19... d4
{[%clk 0:01:25.5]} 20. gxf6 {[%clk 0:00:35.1]} 20... dxc3 {[%clk 0:01:23.1]} 21.
Kb1 {[%clk 0:00:33.6]} 21... Bxf6 {[%clk 0:01:22.3]} 22. Qf5 {[%clk 0:00:31.5]}
22... Rfe8 {[%clk 0:01:16.5]} 23. Bd3 {[%clk 0:00:23]} 23... Rxe3 {[%clk
0:01:16.1]} 24. Qh7+ {[%clk 0:00:17.4]} 24... Kf8 {[%clk 0:01:15.9]} 25. Rhe1
{[%clk 0:00:18.3]} 25... Rxe1 {[%clk 0:01:04]} 26. Rxe1 {[%clk 0:00:19.2]} 26...
g6 {[%clk 0:01:02.6]} 27. Bc4 {[%clk 0:00:16.4]} 27... Qb7 {[%clk 0:00:52.8]}
28. Qxh6+ {[%clk 0:00:10]} 28... Bg7 {[%clk 0:00:51.8]} 29. Qh7 {[%clk
0:00:10.3]} 29... Bd5 {[%clk 0:00:48.4]} 30. Bd3 {[%clk 0:00:08.3]} 30... c4
{[%clk 0:00:47.3]} 31. Be4 {[%clk 0:00:02.8]} 31... cxb3 {[%clk 0:00:42.8]} 0-1